[Event "Titled Tuesday Blitz September 13 Late 2022"]
[White "Hnydiuk, Aleksander"]
[Black "Andreikin, Dmitry"]
[WhiteFideId "1109057"]
[BlackFideId "4158814"]
[WhiteElo "2374"]
[BlackElo "2736"]
[Result "0-1"]
[Round "01"]
[TimeControl "180+1"]
[Date "2022.09.13"]
[WhiteClock "0:00:03"]
[BlackClock "0:01:24"]

1. Nf3 {[%clk 0:03:00]}  d5 {[%clk 0:03:00]} 2. d4 {[%clk 0:03:00]}  Nf6 {[%clk 0:02:59]} 3. c4 {[%clk 0:03:00]}  e6 {[%clk 0:02:59]} 4. g3 {[%clk 0:02:59]}  Bb4+ {[%clk 0:02:55]} 5. Bd2 {[%clk 0:02:59]}  Bd6 {[%clk 0:02:55]} 6. Nc3 {[%clk 0:02:56]}  c6 {[%clk 0:02:55]} 7. Qc2 {[%clk 0:02:54]}  Nbd7 {[%clk 0:02:44]} 8. e4 {[%clk 0:02:52]}  dxe4 {[%clk 0:02:43]} 9. Nxe4 {[%clk 0:02:53]}  Nxe4 {[%clk 0:02:43]} 10. Qxe4 {[%clk 0:02:54]}  Nf6 {[%clk 0:02:42]} 11. Qc2 {[%clk 0:02:50]}  c5 {[%clk 0:02:38]} 12. O-O-O {[%clk 0:02:45]}  cxd4 {[%clk 0:02:36]} 13. Nxd4 {[%clk 0:02:44]}  O-O {[%clk 0:02:33]} 14. Nb5 {[%clk 0:02:21]}  Bc5 {[%clk 0:02:32]} 15. Bf4 {[%clk 0:01:49]}  Qe7 {[%clk 0:02:32]} 16. Bg2 {[%clk 0:01:38]}  a6 {[%clk 0:02:24]} 17. Bd6 {[%clk 0:01:28]}  Bxd6 {[%clk 0:02:24]} 18. Nxd6 {[%clk 0:01:29]}  Rb8 {[%clk 0:02:24]} 19. Rhe1 {[%clk 0:01:26]}  b6 {[%clk 0:02:22]} 20. Kb1 {[%clk 0:01:14]}  a5 {[%clk 0:02:18]} 21. Qd2 {[%clk 0:00:56]}  Ba6 {[%clk 0:02:16]} 22. Qg5 {[%clk 0:00:55]}  Rfd8 {[%clk 0:02:05]} 23. Qe5 {[%clk 0:00:37]}  Ng4 {[%clk 0:01:57]} 24. Qf4 {[%clk 0:00:12]}  Nf6 {[%clk 0:01:57]} 25. Qe5 {[%clk 0:00:10]}  Nd7 {[%clk 0:01:50]} 26. Qf4 {[%clk 0:00:08]}  Nc5 {[%clk 0:01:49]} 27. Bf3 {[%clk 0:00:07]}  h6 {[%clk 0:01:32]} 28. h4 {[%clk 0:00:07]}  Rd7 {[%clk 0:01:30]} 29. Qe5 {[%clk 0:00:04]}  Rbd8 {[%clk 0:01:29]} 30. Nb5 {[%clk 0:00:03]}  Bxb5 {[%clk 0:01:25]} 31. cxb5 {[%clk 0:00:03]}  Nd3 {[%clk 0:01:24]} 0-1


[Site "https://www.chess.com"]

[Event "Titled Tuesday Blitz September 13 Late 2022"]
[White "Keymer, Vincent"]
[Black "Shpanko, Nadiia"]
[WhiteFideId "12940690"]
[BlackFideId "14132400"]
[WhiteElo "2585"]
[BlackElo "2139"]
[Result "1-0"]
[Round "01"]
[TimeControl "180+1"]
[Date "2022.09.13"]
[WhiteClock "0:01:01"]
[BlackClock "0:00:19"]

1. Nf3 {[%clk 0:03:00]}  Nf6 {[%clk 0:02:58]} 2. c4 {[%clk 0:02:59]}  c6 {[%clk 0:02:56]} 3. Nc3 {[%clk 0:02:59]}  d5 {[%clk 0:02:56]} 4. e3 {[%clk 0:02:59]}  Bg4 {[%clk 0:02:54]} 5. Qb3 {[%clk 0:02:56]}  Qb6 {[%clk 0:02:44]} 6. Ne5 {[%clk 0:02:54]}  Bc8 {[%clk 0:02:36]} 7. cxd5 {[%clk 0:02:47]}  Qxb3 {[%clk 0:02:28]} 8. axb3 {[%clk 0:02:48]}  Nxd5 {[%clk 0:02:28]} 9. Bc4 {[%clk 0:02:27]}  e6 {[%clk 0:02:19]} 10. d4 {[%clk 0:02:13]}  Nd7 {[%clk 0:02:19]} 11. Nf3 {[%clk 0:02:01]}  Bb4 {[%clk 0:02:06]} 12. Bd2 {[%clk 0:02:00]}  a5 {[%clk 0:02:02]} 13. O-O {[%clk 0:01:58]}  O-O {[%clk 0:01:52]} 14. Nxd5 {[%clk 0:01:51]}  exd5 {[%clk 0:01:12]} 15. Bxb4 {[%clk 0:01:50]}  axb4 {[%clk 0:01:07]} 16. Rxa8 {[%clk 0:01:49]}  dxc4 {[%clk 0:01:08]} 17. bxc4 {[%clk 0:01:49]}  Nb6 {[%clk 0:01:08]} 18. Raa1 {[%clk 0:01:36]}  Nxc4 {[%clk 0:01:08]} 19. b3 {[%clk 0:01:36]}  Nd6 {[%clk 0:01:08]} 20. Nd2 {[%clk 0:01:33]}  Be6 {[%clk 0:01:08]} 21. Ra4 {[%clk 0:01:33]}  Nb5 {[%clk 0:01:04]} 22. Rxb4 {[%clk 0:01:30]}  f5 {[%clk 0:01:04]} 23. Ra1 {[%clk 0:01:24]}  f4 {[%clk 0:01:04]} 24. e4 {[%clk 0:01:18]}  Rd8 {[%clk 0:01:01]} 25. Nf3 {[%clk 0:01:15]}  Bg4 {[%clk 0:01:00]} 26. Ne5 {[%clk 0:01:15]}  Be6 {[%clk 0:00:57]} 27. d5 {[%clk 0:01:14]}  Bd7 {[%clk 0:00:44]} 28. h4 {[%clk 0:01:08]}  Be8 {[%clk 0:00:41]} 29. Rba4 {[%clk 0:01:02]}  cxd5 {[%clk 0:00:39]} 30. Ra8 {[%clk 0:01:01]}  Rxa8 {[%clk 0:00:33]} 31. Rxa8 {[%clk 0:01:02]}  Kf8 {[%clk 0:00:33]} 32. exd5 {[%clk 0:01:01]}  Ke7 {[%clk 0:00:33]} 33. Rb8 {[%clk 0:00:57]}  Nd6 {[%clk 0:00:33]} 34. Nc4 {[%clk 0:00:57]}  Bf7 {[%clk 0:00:20]} 35. Nxd6 {[%clk 0:00:56]}  Kxd6 {[%clk 0:00:20]} 36. Rxb7 {[%clk 0:00:56]}  Bxd5 {[%clk 0:00:21]} 37. Rxg7 {[%clk 0:00:57]}  Bxb3 {[%clk 0:00:21]} 38. Rxh7 {[%clk 0:00:57]}  Ke5 {[%clk 0:00:21]} 39. Rh5+ {[%clk 0:00:55]}  Kf6 {[%clk 0:00:22]} 40. Rg5 {[%clk 0:00:56]}  Be6 {[%clk 0:00:21]} 41. g3 {[%clk 0:00:56]}  fxg3 {[%clk 0:00:21]} 42. fxg3 {[%clk 0:00:57]}  Bf5 {[%clk 0:00:21]} 43. Kf2 {[%clk 0:00:58]}  Bg6 {[%clk 0:00:21]} 44. Ke3 {[%clk 0:00:59]}  Bf5 {[%clk 0:00:22]} 45. Kf4 {[%clk 0:01:00]}  Be6 {[%clk 0:00:22]} 46. h5 {[%clk 0:01:00]}  Bf7 {[%clk 0:00:22]} 47. g4 {[%clk 0:01:00]}  Ke7 {[%clk 0:00:21]} 48. h6 {[%clk 0:00:59]}  Kf8 {[%clk 0:00:21]} 49. Rg7 {[%clk 0:01:00]}  Be6 {[%clk 0:00:20]} 50. g5 {[%clk 0:01:00]}  Bg8 {[%clk 0:00:20]} 51. Ke5 {[%clk 0:01:01]}  Bh7 {[%clk 0:00:19]} 52. Kf6 {[%clk 0:01:02]}  Bg6 {[%clk 0:00:19]} 53. Kxg6 {[%clk 0:01:01]} 1-0


[Site "https://www.chess.com"]

[Event "Titled Tuesday Blitz September 13 Late 2022"]
[White "Kobo, Ori"]
[Black "Baches Garcia, Guillermo"]
[WhiteFideId "2812320"]
[BlackFideId "2209764"]
[WhiteElo "2420"]
[BlackElo "2441"]
[Result "1-0"]
[Round "01"]
[TimeControl "180+1"]
[Date "2022.09.13"]
[WhiteClock "0:00:27"]
[BlackClock "0:00:01"]

1. Nf3 {[%clk 0:03:00]}  Nf6 {[%clk 0:02:58]} 2. c4 {[%clk 0:03:00]}  e6 {[%clk 0:02:58]} 3. g3 {[%clk 0:03:00]}  d5 {[%clk 0:02:58]} 4. Bg2 {[%clk 0:03:01]}  Be7 {[%clk 0:02:59]} 5. O-O {[%clk 0:03:00]}  O-O {[%clk 0:02:59]} 6. b3 {[%clk 0:03:01]}  b6 {[%clk 0:02:53]} 7. Bb2 {[%clk 0:03:01]}  Bb7 {[%clk 0:02:53]} 8. cxd5 {[%clk 0:02:59]}  exd5 {[%clk 0:02:51]} 9. d4 {[%clk 0:02:55]}  Nbd7 {[%clk 0:02:44]} 10. Nc3 {[%clk 0:02:55]}  a6 {[%clk 0:02:39]} 11. Qc2 {[%clk 0:02:41]}  Bd6 {[%clk 0:02:35]} 12. Rfd1 {[%clk 0:02:29]}  Qe7 {[%clk 0:02:31]} 13. e3 {[%clk 0:02:27]}  Rfe8 {[%clk 0:02:23]} 14. a4 {[%clk 0:02:26]}  g6 {[%clk 0:02:08]} 15. a5 {[%clk 0:02:22]}  b5 {[%clk 0:02:02]} 16. Ne2 {[%clk 0:02:11]}  Ne4 {[%clk 0:01:55]} 17. Nf4 {[%clk 0:02:11]}  h5 {[%clk 0:01:32]} 18. Rac1 {[%clk 0:02:05]}  c6 {[%clk 0:01:18]} 19. Nd3 {[%clk 0:02:00]}  Rac8 {[%clk 0:01:01]} 20. Bh3 {[%clk 0:01:51]}  Rc7 {[%clk 0:00:59]} 21. Nfe5 {[%clk 0:01:38]}  Ndf6 {[%clk 0:00:50]} 22. f3 {[%clk 0:01:32]}  Ng5 {[%clk 0:00:46]} 23. Bg2 {[%clk 0:01:33]}  h4 {[%clk 0:00:46]} 24. gxh4 {[%clk 0:01:30]}  Ne6 {[%clk 0:00:43]} 25. Qf2 {[%clk 0:01:26]}  Nh5 {[%clk 0:00:38]} 26. Kh1 {[%clk 0:01:20]}  Neg7 {[%clk 0:00:33]} 27. Rg1 {[%clk 0:01:03]}  Kh7 {[%clk 0:00:27]} 28. Bh3 {[%clk 0:01:02]}  Rg8 {[%clk 0:00:17]} 29. Nc5 {[%clk 0:00:51]}  Bc8 {[%clk 0:00:14]} 30. Bg4 {[%clk 0:00:43]}  Nf6 {[%clk 0:00:12]} 31. Bxc8 {[%clk 0:00:42]}  Rcxc8 {[%clk 0:00:11]} 32. Nxa6 {[%clk 0:00:42]}  Ra8 {[%clk 0:00:09]} 33. Rxc6 {[%clk 0:00:40]}  Nf5 {[%clk 0:00:05]} 34. b4 {[%clk 0:00:33]}  Qb7 {[%clk 0:00:02]} 35. Rb6 {[%clk 0:00:29]}  Qe7 {[%clk 0:00:02]} 36. Nc5 {[%clk 0:00:28]}  Nh5 {[%clk 0:00:01]} 37. Rb7 {[%clk 0:00:27]}  Qf6 {[%clk 0:00:01]} 38. Rxf7+ {[%clk 0:00:27]} 1-0


[Site "https://www.chess.com"]

[Event "Titled Tuesday Blitz September 13 Late 2022"]
[White "Lenderman, Aleksandr"]
[Black "Bellissimo, Joseph F."]
[WhiteFideId "2021285"]
[BlackFideId "2609843"]
[WhiteElo "2607"]
[BlackElo "2061"]
[Result "1-0"]
[Round "01"]
[TimeControl "180+1"]
[Date "2022.09.13"]
[WhiteClock "0:01:18"]
[BlackClock "0:00:10"]

1. e4 {[%clk 0:02:58]}  e6 {[%clk 0:02:57]} 2. d4 {[%clk 0:02:52]}  d5 {[%clk 0:02:54]} 3. Nd2 {[%clk 0:02:53]}  Nf6 {[%clk 0:02:53]} 4. e5 {[%clk 0:02:51]}  Nfd7 {[%clk 0:02:54]} 5. Bd3 {[%clk 0:02:51]}  c5 {[%clk 0:02:55]} 6. c3 {[%clk 0:02:51]}  Nc6 {[%clk 0:02:55]} 7. Ne2 {[%clk 0:02:51]}  cxd4 {[%clk 0:02:55]} 8. cxd4 {[%clk 0:02:52]}  f6 {[%clk 0:02:56]} 9. exf6 {[%clk 0:02:49]}  Qxf6 {[%clk 0:02:57]} 10. Nf3 {[%clk 0:02:48]}  h6 {[%clk 0:02:57]} 11. O-O {[%clk 0:02:45]}  Bd6 {[%clk 0:02:57]} 12. Ng3 {[%clk 0:02:43]}  O-O {[%clk 0:02:57]} 13. Bc2 {[%clk 0:02:42]}  Rd8 {[%clk 0:02:55]} 14. Re1 {[%clk 0:02:40]}  Nf8 {[%clk 0:02:54]} 15. Be3 {[%clk 0:02:39]}  Bd7 {[%clk 0:02:54]} 16. Qd2 {[%clk 0:02:37]}  Be8 {[%clk 0:02:53]} 17. a3 {[%clk 0:02:31]}  Bg6 {[%clk 0:02:48]} 18. Rac1 {[%clk 0:02:27]}  Rac8 {[%clk 0:02:47]} 19. b4 {[%clk 0:02:20]}  a6 {[%clk 0:02:46]} 20. Bd3 {[%clk 0:02:17]}  e5 {[%clk 0:02:30]} 21. dxe5 {[%clk 0:02:14]}  Nxe5 {[%clk 0:02:10]} 22. Nxe5 {[%clk 0:02:12]}  Rxc1 {[%clk 0:02:10]} 23. Qxc1 {[%clk 0:02:08]}  Bxe5 {[%clk 0:02:09]} 24. Bxg6 {[%clk 0:02:04]}  Nxg6 {[%clk 0:02:07]} 25. Qd1 {[%clk 0:01:59]}  d4 {[%clk 0:02:04]} 26. Bd2 {[%clk 0:01:58]}  d3 {[%clk 0:01:47]} 27. Ne4 {[%clk 0:01:57]}  Qf5 {[%clk 0:01:27]} 28. g3 {[%clk 0:01:51]}  Bd4 {[%clk 0:01:16]} 29. Kg2 {[%clk 0:01:51]}  Rf8 {[%clk 0:01:05]} 30. Qb3+ {[%clk 0:01:46]}  Kh8 {[%clk 0:01:02]} 31. Qxd3 {[%clk 0:01:45]}  Bxf2 {[%clk 0:00:55]} 32. Rf1 {[%clk 0:01:45]}  Ne5 {[%clk 0:00:54]} 33. Qe2 {[%clk 0:01:45]}  Ng4 {[%clk 0:00:48]} 34. Nxf2 {[%clk 0:01:45]}  Qd5+ {[%clk 0:00:40]} 35. Ne4 {[%clk 0:01:39]}  Re8 {[%clk 0:00:31]} 36. Qxg4 {[%clk 0:01:39]}  Rxe4 {[%clk 0:00:23]} 37. Rf8+ {[%clk 0:01:39]}  Kh7 {[%clk 0:00:23]} 38. Qf5+ {[%clk 0:01:38]}  Qxf5 {[%clk 0:00:22]} 39. Rxf5 {[%clk 0:01:39]}  Re2+ {[%clk 0:00:20]} 40. Rf2 {[%clk 0:01:39]}  Re7 {[%clk 0:00:20]} 41. Bc3 {[%clk 0:01:38]}  Rc7 {[%clk 0:00:20]} 42. Bd4 {[%clk 0:01:38]}  g5 {[%clk 0:00:20]} 43. Bc5 {[%clk 0:01:36]}  Kg6 {[%clk 0:00:20]} 44. g4 {[%clk 0:01:36]}  h5 {[%clk 0:00:20]} 45. gxh5+ {[%clk 0:01:35]}  Kxh5 {[%clk 0:00:21]} 46. Rf6 {[%clk 0:01:31]}  Rd7 {[%clk 0:00:20]} 47. Bd6 {[%clk 0:01:29]}  Kg4 {[%clk 0:00:18]} 48. h3+ {[%clk 0:01:28]}  Kh5 {[%clk 0:00:18]} 49. Kg3 {[%clk 0:01:29]}  Rd8 {[%clk 0:00:17]} 50. a4 {[%clk 0:01:27]}  Rc8 {[%clk 0:00:16]} 51. Bc5 {[%clk 0:01:27]}  Rd8 {[%clk 0:00:16]} 52. Be3 {[%clk 0:01:25]}  Rd3 {[%clk 0:00:16]} 53. Kf3 {[%clk 0:01:26]}  Rb3 {[%clk 0:00:15]} 54. Rb6 {[%clk 0:01:25]}  a5 {[%clk 0:00:11]} 55. bxa5 {[%clk 0:01:25]}  Ra3 {[%clk 0:00:11]} 56. Rxb7 {[%clk 0:01:20]}  Rxa4 {[%clk 0:00:11]} 57. Ra7 {[%clk 0:01:19]}  Kh4 {[%clk 0:00:10]} 58. Rh7# {[%clk 0:01:18]} 1-0


[Site "https://www.chess.com"]

[Event "Titled Tuesday Blitz September 13 Late 2022"]
[White "Manukian, Artak"]
[Black "Livaic, Leon"]
[WhiteFideId "13301373"]
[BlackFideId "14531534"]
[WhiteElo "2473"]
[BlackElo "2540"]
[Result "0-1"]
[Round "01"]
[TimeControl "180+1"]
[Date "2022.09.13"]
[WhiteClock "0:00:01"]
[BlackClock "0:00:29"]

1. e4 {[%clk 0:03:00]}  c5 {[%clk 0:02:59]} 2. Nf3 {[%clk 0:03:00]}  d6 {[%clk 0:02:59]} 3. Bb5+ {[%clk 0:02:59]}  Nd7 {[%clk 0:02:59]} 4. O-O {[%clk 0:02:59]}  a6 {[%clk 0:02:59]} 5. Bd3 {[%clk 0:02:58]}  g6 {[%clk 0:02:59]} 6. a4 {[%clk 0:02:56]}  b6 {[%clk 0:02:57]} 7. Re1 {[%clk 0:02:55]}  Bb7 {[%clk 0:02:57]} 8. Nc3 {[%clk 0:02:54]}  Bg7 {[%clk 0:02:58]} 9. Bc4 {[%clk 0:02:54]}  Ngf6 {[%clk 0:02:57]} 10. d3 {[%clk 0:02:54]}  O-O {[%clk 0:02:57]} 11. h3 {[%clk 0:02:50]}  e6 {[%clk 0:02:55]} 12. Bg5 {[%clk 0:02:46]}  Qc7 {[%clk 0:02:53]} 13. Bf4 {[%clk 0:02:42]}  Ne5 {[%clk 0:02:46]} 14. Ba2 {[%clk 0:02:33]}  Nxf3+ {[%clk 0:02:40]} 15. Qxf3 {[%clk 0:02:33]}  Nd7 {[%clk 0:02:41]} 16. Qg3 {[%clk 0:02:30]}  Ne5 {[%clk 0:02:37]} 17. Bd2 {[%clk 0:02:20]}  Nc6 {[%clk 0:02:36]} 18. Qh4 {[%clk 0:01:57]}  Nd4 {[%clk 0:02:35]} 19. Rac1 {[%clk 0:01:55]}  b5 {[%clk 0:02:34]} 20. Bh6 {[%clk 0:01:51]}  Qa5 {[%clk 0:02:15]} 21. Bxg7 {[%clk 0:01:50]}  Kxg7 {[%clk 0:02:16]} 22. e5 {[%clk 0:01:41]}  Qd8 {[%clk 0:02:06]} 23. Qxd8 {[%clk 0:01:24]}  Rfxd8 {[%clk 0:02:07]} 24. exd6 {[%clk 0:01:24]}  Rxd6 {[%clk 0:02:06]} 25. Ne4 {[%clk 0:01:14]}  Bxe4 {[%clk 0:02:02]} 26. Rxe4 {[%clk 0:01:15]}  bxa4 {[%clk 0:01:48]} 27. c3 {[%clk 0:01:11]}  f5 {[%clk 0:01:39]} 28. Re5 {[%clk 0:01:07]}  Nb3 {[%clk 0:01:37]} 29. Bxb3 {[%clk 0:01:06]}  axb3 {[%clk 0:01:38]} 30. Rxc5 {[%clk 0:01:02]}  Rxd3 {[%clk 0:01:38]} 31. Rc7+ {[%clk 0:00:57]}  Kf6 {[%clk 0:01:33]} 32. Rb7 {[%clk 0:00:57]}  Rd2 {[%clk 0:01:27]} 33. Rxb3 {[%clk 0:00:57]}  Rad8 {[%clk 0:01:28]} 34. Rb6 {[%clk 0:00:53]}  Re2 {[%clk 0:01:28]} 35. Rxa6 {[%clk 0:00:48]}  Rdd2 {[%clk 0:01:28]} 36. Rf1 {[%clk 0:00:47]}  Rxb2 {[%clk 0:01:28]} 37. g3 {[%clk 0:00:37]}  h5 {[%clk 0:01:26]} 38. h4 {[%clk 0:00:37]}  Rbc2 {[%clk 0:01:20]} 39. Rc6 {[%clk 0:00:36]}  Ke5 {[%clk 0:01:16]} 40. Rc8 {[%clk 0:00:32]}  Kf6 {[%clk 0:01:11]} 41. Rc6 {[%clk 0:00:28]}  g5 {[%clk 0:01:08]} 42. hxg5+ {[%clk 0:00:26]}  Kxg5 {[%clk 0:01:09]} 43. Kg2 {[%clk 0:00:23]}  e5 {[%clk 0:01:05]} 44. Kg1 {[%clk 0:00:14]}  e4 {[%clk 0:01:06]} 45. Rc8 {[%clk 0:00:10]}  e3 {[%clk 0:01:00]} 46. Rg8+ {[%clk 0:00:09]}  Kf6 {[%clk 0:01:00]} 47. Rf8+ {[%clk 0:00:09]}  Kg6 {[%clk 0:00:59]} 48. Rg8+ {[%clk 0:00:08]}  Kf7 {[%clk 0:00:59]} 49. Rg5 {[%clk 0:00:07]}  Kf6 {[%clk 0:00:52]} 50. Rxh5 {[%clk 0:00:07]}  Rxf2 {[%clk 0:00:52]} 51. Rxf2 {[%clk 0:00:07]}  Rxf2 {[%clk 0:00:53]} 52. Rh8 {[%clk 0:00:07]}  Ke7 {[%clk 0:00:36]} 53. Rh4 {[%clk 0:00:03]}  Rc2 {[%clk 0:00:31]} 54. Kf1 {[%clk 0:00:03]}  Kf6 {[%clk 0:00:29]} 55. Rf4 {[%clk 0:00:01]}  Ke5 {[%clk 0:00:29]} 0-1


[Site "https://www.chess.com"]

[Event "Titled Tuesday Blitz September 13 Late 2022"]
[White "Mendez Fortes, Eduardo Jesus"]
[Black "Pap, Gyula"]
[WhiteFideId "3502376"]
[BlackFideId "725323"]
[WhiteElo "2307"]
[BlackElo "2519"]
[Result "1/2-1/2"]
[Round "01"]
[TimeControl "180+1"]
[Date "2022.09.13"]
[WhiteClock "0:00:22"]
[BlackClock "0:00:48"]

1. e4 {[%clk 0:02:56]}  e5 {[%clk 0:02:56]} 2. Nf3 {[%clk 0:02:55]}  Nc6 {[%clk 0:02:56]} 3. Bb5 {[%clk 0:02:53]}  a6 {[%clk 0:02:57]} 4. Ba4 {[%clk 0:02:53]}  b5 {[%clk 0:02:57]} 5. Bb3 {[%clk 0:02:53]}  Na5 {[%clk 0:02:58]} 6. O-O {[%clk 0:02:52]}  d6 {[%clk 0:02:55]} 7. d4 {[%clk 0:02:46]}  exd4 {[%clk 0:02:55]} 8. Nxd4 {[%clk 0:02:47]}  Nxb3 {[%clk 0:02:53]} 9. axb3 {[%clk 0:02:45]}  Bb7 {[%clk 0:02:53]} 10. Nc3 {[%clk 0:02:44]}  Nf6 {[%clk 0:02:49]} 11. Re1 {[%clk 0:02:36]}  Be7 {[%clk 0:02:49]} 12. Qf3 {[%clk 0:02:23]}  O-O {[%clk 0:02:48]} 13. Nf5 {[%clk 0:02:22]}  Re8 {[%clk 0:02:22]} 14. Nxe7+ {[%clk 0:01:56]}  Qxe7 {[%clk 0:02:11]} 15. Bg5 {[%clk 0:01:54]}  b4 {[%clk 0:01:56]} 16. Na4 {[%clk 0:01:50]}  Qe5 {[%clk 0:01:41]} 17. Bxf6 {[%clk 0:01:40]}  Qxf6 {[%clk 0:01:42]} 18. Qxf6 {[%clk 0:01:39]}  gxf6 {[%clk 0:01:43]} 19. f3 {[%clk 0:01:38]}  Re5 {[%clk 0:01:40]} 20. g4 {[%clk 0:01:36]}  Bc6 {[%clk 0:01:25]} 21. Kf2 {[%clk 0:01:25]}  Kg7 {[%clk 0:01:26]} 22. Red1 {[%clk 0:01:20]}  h5 {[%clk 0:01:23]} 23. h3 {[%clk 0:01:19]}  Rb8 {[%clk 0:01:23]} 24. Rd4 {[%clk 0:01:16]}  a5 {[%clk 0:01:16]} 25. Rc4 {[%clk 0:01:06]}  Bxa4 {[%clk 0:01:15]} 26. Rxa4 {[%clk 0:00:58]}  Rb7 {[%clk 0:01:10]} 27. Rc6 {[%clk 0:00:55]}  Ra7 {[%clk 0:01:08]} 28. Ra1 {[%clk 0:00:43]}  hxg4 {[%clk 0:01:07]} 29. hxg4 {[%clk 0:00:42]}  Kf8 {[%clk 0:01:03]} 30. Rc4 {[%clk 0:00:38]}  Ke7 {[%clk 0:01:02]} 31. Rxb4 {[%clk 0:00:36]}  axb4 {[%clk 0:00:59]} 32. Rxa7 {[%clk 0:00:36]}  Rc5 {[%clk 0:01:00]} 33. c4 {[%clk 0:00:31]}  bxc3 {[%clk 0:01:00]} 34. bxc3 {[%clk 0:00:32]}  Rxc3 {[%clk 0:01:01]} 35. Rb7 {[%clk 0:00:29]}  Kd7 {[%clk 0:00:59]} 36. Kg3 {[%clk 0:00:28]}  Kc8 {[%clk 0:00:58]} 37. Rb5 {[%clk 0:00:27]}  Kd7 {[%clk 0:00:55]} 38. Rb8 {[%clk 0:00:24]}  Ke7 {[%clk 0:00:49]} 39. Kf4 {[%clk 0:00:23]}  Kd7 {[%clk 0:00:48]} 40. Kg3 {[%clk 0:00:22]} 1/2-1/2


[Site "https://www.chess.com"]

[Event "Titled Tuesday Blitz September 13 Late 2022"]
[White "Mikhalsky, Vladimir"]
[Black "Zhigalko, Sergei"]
[WhiteFideId "14144352"]
[BlackFideId "13502956"]
[WhiteElo "2271"]
[BlackElo "2662"]
[Result "0-1"]
[Round "01"]
[TimeControl "180+1"]
[Date "2022.09.13"]
[WhiteClock "0:00:01"]
[BlackClock "0:00:05"]

1. d4 {[%clk 0:02:58]}  Nf6 {[%clk 0:02:59]} 2. g3 {[%clk 0:02:57]}  d5 {[%clk 0:02:52]} 3. Bg2 {[%clk 0:02:56]}  Bf5 {[%clk 0:02:52]} 4. Nf3 {[%clk 0:02:56]}  e6 {[%clk 0:02:52]} 5. O-O {[%clk 0:02:56]}  h6 {[%clk 0:02:51]} 6. c4 {[%clk 0:02:56]}  c6 {[%clk 0:02:51]} 7. b3 {[%clk 0:02:52]}  Nbd7 {[%clk 0:02:50]} 8. Bb2 {[%clk 0:02:49]}  Bd6 {[%clk 0:02:50]} 9. Nbd2 {[%clk 0:02:45]}  O-O {[%clk 0:02:49]} 10. Ne5 {[%clk 0:02:43]}  Qe7 {[%clk 0:02:47]} 11. a3 {[%clk 0:02:27]}  Rfd8 {[%clk 0:02:45]} 12. c5 {[%clk 0:02:16]}  Bxe5 {[%clk 0:02:14]} 13. dxe5 {[%clk 0:02:15]}  Ng4 {[%clk 0:02:14]} 14. Nf3 {[%clk 0:02:07]}  Be4 {[%clk 0:02:14]} 15. b4 {[%clk 0:01:48]}  Bxf3 {[%clk 0:02:05]} 16. exf3 {[%clk 0:01:48]}  Ngxe5 {[%clk 0:02:06]} 17. f4 {[%clk 0:01:46]}  Nc4 {[%clk 0:02:04]} 18. Bc3 {[%clk 0:01:45]}  b6 {[%clk 0:01:57]} 19. cxb6 {[%clk 0:01:40]}  axb6 {[%clk 0:01:58]} 20. Qd4 {[%clk 0:01:33]}  Nf6 {[%clk 0:01:45]} 21. a4 {[%clk 0:01:27]}  c5 {[%clk 0:01:44]} 22. bxc5 {[%clk 0:01:21]}  bxc5 {[%clk 0:01:44]} 23. Qd3 {[%clk 0:01:21]}  Ra6 {[%clk 0:01:28]} 24. Rfe1 {[%clk 0:01:12]}  Rda8 {[%clk 0:01:20]} 25. Qc2 {[%clk 0:01:11]}  Nd6 {[%clk 0:00:27]} 26. Bxf6 {[%clk 0:00:59]}  Qxf6 {[%clk 0:00:27]} 27. Qxc5 {[%clk 0:00:59]}  Nc4 {[%clk 0:00:28]} 28. Qb5 {[%clk 0:00:53]}  Ra5 {[%clk 0:00:20]} 29. Qc6 {[%clk 0:00:49]}  Nb2 {[%clk 0:00:11]} 30. Bf1 {[%clk 0:00:32]}  Nxa4 {[%clk 0:00:09]} 31. Qc7 {[%clk 0:00:24]}  R5a7 {[%clk 0:00:07]} 32. Qc6 {[%clk 0:00:21]}  Qc3 {[%clk 0:00:04]} 33. Qb5 {[%clk 0:00:15]}  Qc7 {[%clk 0:00:02]} 34. Rec1 {[%clk 0:00:14]}  Qd8 {[%clk 0:00:03]} 35. Rcb1 {[%clk 0:00:14]}  Nc3 {[%clk 0:00:03]} 36. Rxa7 {[%clk 0:00:11]}  Nxb5 {[%clk 0:00:03]} 37. Rxa8 {[%clk 0:00:11]}  Qxa8 {[%clk 0:00:04]} 38. Rxb5 {[%clk 0:00:11]}  g6 {[%clk 0:00:04]} 39. Rc5 {[%clk 0:00:11]}  Kg7 {[%clk 0:00:05]} 40. h4 {[%clk 0:00:11]}  Qa7 {[%clk 0:00:05]} 41. Rc3 {[%clk 0:00:10]}  Kf6 {[%clk 0:00:05]} 42. h5 {[%clk 0:00:10]}  gxh5 {[%clk 0:00:05]} 43. Rb3 {[%clk 0:00:10]}  Qd4 {[%clk 0:00:04]} 44. Kg2 {[%clk 0:00:09]}  Kg7 {[%clk 0:00:04]} 45. Be2 {[%clk 0:00:10]}  h4 {[%clk 0:00:05]} 46. Bf3 {[%clk 0:00:09]}  hxg3 {[%clk 0:00:04]} 47. fxg3 {[%clk 0:00:09]}  Qd2+ {[%clk 0:00:05]} 48. Kh3 {[%clk 0:00:09]}  Qf2 {[%clk 0:00:05]} 49. Kg4 {[%clk 0:00:08]}  Kf6 {[%clk 0:00:04]} 50. Ra3 {[%clk 0:00:07]}  Qf1 {[%clk 0:00:04]} 51. Kh4 {[%clk 0:00:06]}  Qg1 {[%clk 0:00:04]} 52. Kg4 {[%clk 0:00:05]}  Qh2 {[%clk 0:00:04]} 53. Bd1 {[%clk 0:00:04]}  h5+ {[%clk 0:00:05]} 54. Kf3 {[%clk 0:00:04]}  h4 {[%clk 0:00:05]} 55. Kg4 {[%clk 0:00:01]}  h3 {[%clk 0:00:05]} 56. Kh4 {[%clk 0:00:01]}  Qg1 {[%clk 0:00:05]} 57. Bg4 {[%clk 0:00:01]}  h2 {[%clk 0:00:05]} 0-1


[Site "https://www.chess.com"]

[Event "Titled Tuesday Blitz September 13 Late 2022"]
[White "Nazaretyan, Tigran"]
[Black "Jobava, Baadur"]
[WhiteFideId "24162345"]
[BlackFideId "13601520"]
[WhiteElo "2173"]
[BlackElo "2582"]
[Result "0-1"]
[Round "01"]
[TimeControl "180+1"]
[Date "2022.09.13"]
[WhiteClock "0:00:58"]
[BlackClock "0:02:28"]

1. d4 {[%clk 0:02:59]}  Nf6 {[%clk 0:02:48]} 2. c4 {[%clk 0:02:59]}  c5 {[%clk 0:02:47]} 3. d5 {[%clk 0:02:56]}  g6 {[%clk 0:02:46]} 4. Nc3 {[%clk 0:02:55]}  d6 {[%clk 0:02:47]} 5. e4 {[%clk 0:02:55]}  Bg7 {[%clk 0:02:48]} 6. Bd3 {[%clk 0:02:54]}  O-O {[%clk 0:02:49]} 7. h3 {[%clk 0:02:54]}  e6 {[%clk 0:02:49]} 8. Nf3 {[%clk 0:02:54]}  exd5 {[%clk 0:02:50]} 9. cxd5 {[%clk 0:02:54]}  Re8 {[%clk 0:02:51]} 10. O-O {[%clk 0:02:53]}  a6 {[%clk 0:02:52]} 11. a4 {[%clk 0:02:53]}  Nbd7 {[%clk 0:02:52]} 12. Bf4 {[%clk 0:02:52]}  Nh5 {[%clk 0:02:53]} 13. Bxd6 {[%clk 0:02:51]}  Qb6 {[%clk 0:02:53]} 14. e5 {[%clk 0:02:42]}  Nxe5 {[%clk 0:02:44]} 15. Bxe5 {[%clk 0:02:32]}  Rxe5 {[%clk 0:02:44]} 16. Nxe5 {[%clk 0:02:25]}  Bxe5 {[%clk 0:02:45]} 17. Qc2 {[%clk 0:02:20]}  Bd7 {[%clk 0:02:42]} 18. a5 {[%clk 0:02:17]}  Qf6 {[%clk 0:02:41]} 19. Ne4 {[%clk 0:02:13]}  Qh4 {[%clk 0:02:36]} 20. Rfe1 {[%clk 0:01:36]}  Bxh3 {[%clk 0:02:30]} 21. gxh3 {[%clk 0:01:34]}  Qxh3 {[%clk 0:02:31]} 22. f3 {[%clk 0:01:25]}  Bd4+ {[%clk 0:02:29]} 23. Nf2 {[%clk 0:01:24]}  Ng3 {[%clk 0:02:29]} 24. Re3 {[%clk 0:01:02]}  Bxe3 {[%clk 0:02:28]} 25. Qxc5 {[%clk 0:00:58]}  Qh1# {[%clk 0:02:28]} 0-1


[Site "https://www.chess.com"]